bitfinex/quotes_BTCUSD_20251205
["timestamp","ask_amount","ask_price","bid_price","bid_amount"]
[1764934564600,0.00011929,91219.0,91218.0,0.01664]
[1764934564996,0.00311929,91219.0,91218.0,0.01664]
[1764934565617,0.00311929,91219.0,91217.0,0.01736]
[1764934566024,0.00311929,91219.0,91217.0,0.23661656]
[1764934566228,0.00411929,91219.0,91217.0,0.21925656]
[1764934566634,0.00411929,91219.0,91218.0,0.01173]
[1764934566868,0.01096286,91217.0,91213.0,0.01096334]
[1764934567078,0.21926726,91213.0,91209.0,0.2302384]
[1764934567288,0.01096346,91212.0,91208.0,0.21927829]
[1764934567488,0.01096346,91212.0,91201.0,0.02269479]
[1764934567489,0.01096407,91207.0,91201.0,0.02269479]
[1764934567700,0.2192914,91204.0,91201.0,0.01173]
[1764934567910,0.23025346,91204.0,91201.0,0.01173]
[1764934568111,0.23024646,91207.0,91203.0,0.21929016]
[1764934568521,0.23024911,91206.0,91203.0,0.01096455]
[1764934568737,0.23025125,91205.0,91202.0,0.01096467]
[1764934568943,0.21928877,91204.0,91202.0,0.01096467]
[1764934569172,0.2302532,91204.0,91201.0,0.24198912]
[1764934569378,0.23027236,91197.0,91193.0,0.01096575]
[1764934569586,0.01096527,91197.0,91194.0,0.01096563]
[1764934569795,0.01096527,91197.0,91194.0,0.02832563]
[1764934570003,0.21930823,91196.0,91194.0,0.02832563]
[1764934570208,0.01096599,91191.0,91188.0,0.01096635]
[1764934570445,0.2193295,91187.0,91186.0,0.00023501]
[1764934571488,0.2193295,91187.0,91186.0,0.00223501]
[1764934571689,0.2193295,91187.0,91186.0,0.00023501]
[1764934572935,0.01096623,91189.0,91186.0,0.0278416]
[1764934573145,0.01096623,91189.0,91187.0,0.23596943]
[1764934573344,0.01096623,91189.0,91187.0,0.01664]
[1764934573968,0.2193271,91188.0,91187.0,0.01664]
[1764934574230,0.01096623,91189.0,91187.0,0.01764]
[1764934574591,0.01096623,91189.0,91187.0,0.23696906]
[1764934574801,0.23028407,91192.0,91188.0,0.2359671]
[1764934575007,0.23028407,91192.0,91191.0,0.01173]
[1764934575450,0.23028407,91192.0,91191.0,0.03323397]
[1764934576056,0.23028407,91192.0,91186.0,0.02173898]
[1764934576057,0.2193295,91187.0,91186.0,0.02173898]
[1764934576734,0.2193295,91187.0,91186.0,0.00023501]
[1764934577322,0.2193295,91187.0,91186.0,0.00123501]
[1764934577721,0.2193295,91187.0,91186.0,0.00023501]
[1764934577922,0.2243295,91187.0,91186.0,0.00023501]
[1764934578330,0.2357105,91187.0,91186.0,0.00023501]
[1764934579428,0.2367105,91187.0,91186.0,0.00023501]
[1764934579640,0.2377105,91187.0,91186.0,0.00023501]
[1764934584496,0.33230409,91187.0,91186.0,0.00023501]
[1764934584696,0.33130409,91187.0,91186.0,0.00023501]
[1764934584898,0.2367105,91187.0,91186.0,0.00023501]
[1764934585099,0.2377105,91187.0,91186.0,0.00023501]
[1764934585561,0.2377105,91187.0,91186.0,0.02173898]
[1764934585920,0.017381,91187.0,91186.0,0.02173898]
[1764934586126,0.018381,91187.0,91186.0,0.02173898]
[1764934586525,0.017381,91187.0,91186.0,0.02173898]
[1764934586724,0.017381,91187.0,91186.0,0.02273898]
[1764934586954,0.017381,91187.0,91186.0,0.24207089]
[1764934587160,0.001,91187.0,91186.0,0.32317692]
[1764934587359,0.001,91187.0,91186.0,0.34568089]
[1764934588370,0.016381,91207.0,91206.0,0.02150397]
[1764934588804,0.0109625,91220.0,91211.0,0.21927179]
[1764934588970,0.0109625,91220.0,91210.0,0.02250396]
[1764934588971,0.23033426,91220.0,91219.0,0.02150397]
[1764934589190,0.00011929,91220.0,91218.0,0.02698]
[1764934589416,0.00011929,91220.0,91219.0,0.05552397]
[1764934589621,0.00011929,91220.0,91219.0,0.10775397]
[1764934589799,0.00011929,91220.0,91219.0,0.05552397]
[1764934590372,0.01108179,91220.0,91218.0,0.001]
[1764934590487,0.00011929,91220.0,91218.0,0.001]
[1764934590689,0.00011929,91220.0,91219.0,0.02150397]
[1764934590901,0.01096334,91213.0,91210.0,0.00099999]
[1764934591095,0.21927179,91211.0,91205.0,0.02150397]
[1764934591298,0.04933441,91210.0,91205.0,0.02150397]
[1764934591519,0.04933441,91210.0,91204.0,0.323]
[1764934591712,0.04933441,91210.0,91200.0,0.0119649]
[1764934592014,0.04933441,91210.0,91200.0,0.00099999]
[1764934592671,0.23026063,91201.0,91200.0,0.02150397]
[1764934592876,0.23026655,91199.0,91197.0,0.01736]
[1764934593075,0.23028419,91192.0,91189.0,0.02150397]
[1764934593411,0.02192514,91191.0,91189.0,0.02150397]
[1764934593619,0.02192514,91191.0,91190.0,0.01736]
[1764934595946,0.02192514,91194.0,91193.0,0.21931297]
[1764934596169,0.02192514,91194.0,91193.0,0.25178269]
[1764934597023,0.01096407,91207.0,91203.0,0.23025456]
[1764934597239,0.01096443,91204.0,91200.0,0.01096491]
[1764934597458,0.21928663,91205.0,91200.0,0.0119649]
[1764934597459,0.23025094,91205.0,91200.0,0.0119649]
[1764934597679,0.23025094,91205.0,91204.0,0.02150397]
[1764934597819,0.01096431,91205.0,91204.0,0.02150397]
[1764934598036,0.2302469,91207.0,91205.0,0.02150397]
[1764934598240,0.23024329,91208.0,91207.0,0.02150397]
[1764934599649,0.21928821,91205.0,91203.0,0.01736]
[1764934600306,0.21928862,91204.0,91203.0,0.01736]
[1764934600921,0.01196395,91208.0,91203.0,0.01736]
[1764934601127,0.23024326,91208.0,91204.0,0.21928853]
[1764934601545,0.23024553,91207.0,91203.0,0.24761556]
[1764934601761,0.21928393,91206.0,91203.0,0.02932455]
[1764934601968,0.01096395,91208.0,91203.0,0.02832455]
[1764934602168,0.24669183,91207.0,91203.0,0.02832455]
[1764934602373,0.01096407,91207.0,91204.0,0.001]
[1764934602578,0.01096407,91207.0,91203.0,0.24761423]
[1764934602786,0.01096395,91208.0,91205.0,0.21928538]
[1764934602996,0.01096334,91213.0,91205.0,0.01096431]
[1764934603208,0.21925518,91218.0,91216.0,0.02150397]
[1764934603414,0.23021555,91219.0,91216.0,0.02150397]
[1764934603415,0.21925737,91217.0,91216.0,0.02150397]
[1764934603618,0.01096262,91219.0,91216.0,0.02150397]
[1764934603823,0.21925737,91217.0,91216.0,0.02150397]
[1764934604676,0.21900469,91217.0,91216.0,0.02150397]
[1764934604872,0.21927179,91211.0,91210.0,0.02150397]
[1764934605026,0.23023493,91213.0,91210.0,0.02150397]
[1764934605372,0.02192514,91211.0,91210.0,0.02150397]
[1764934605565,0.24119693,91211.0,91210.0,0.02150397]
[1764934606402,0.02192514,91211.0,91210.0,0.02350397]
[1764934606629,0.24119693,91211.0,91210.0,0.02350397]
[1764934606848,0.02192514,91211.0,91210.0,0.02350397]
[1764934607089,0.02192514,91213.0,91212.0,0.01096346]
[1764934607297,0.02192514,91213.0,91210.0,0.03446768]
[1764934607705,0.02192514,91213.0,91211.0,0.2192714]
[1764934607933,0.02192514,91213.0,91212.0,0.21926939]
[1764934608149,0.23021632,91219.0,91212.0,0.21926939]
[1764934608150,0.01096214,91223.0,91219.0,0.01096262]
[1764934608370,0.21924776,91221.0,91220.0,0.00099999]
[1764934608789,0.21924776,91221.0,91220.0,0.02250396]
[1764934609875,0.21924719,91222.0,91220.0,0.02250396]
[1764934610097,0.001,91223.0,91222.0,0.02150397]
[1764934610308,0.0109619,91225.0,91222.0,0.24074932]
[1764934610555,0.21924055,91224.0,91223.0,0.02150397]
[1764934610955,0.21924776,91221.0,91220.0,0.00099999]
[1764934612546,0.0109619,91225.0,91224.0,0.02150397]
[1764934612743,0.21924776,91221.0,91220.0,0.02250397]
[1764934612911,0.21924776,91221.0,91220.0,0.001]
[1764934613695,0.23022782,91214.0,91210.0,0.04086395]
[1764934613895,0.24119423,91213.0,91210.0,0.25913783]
[1764934614101,0.21927049,91212.0,91210.0,0.03986396]
[1764934614305,0.21927,91212.0,91210.0,0.03986396]
[1764934614699,0.2411933,91213.0,91210.0,0.03986396]
[1764934614855,0.02192514,91213.0,91211.0,0.21926959]
[1764934615089,0.001,91221.0,91211.0,0.21926959]
[1764934615090,0.001,91221.0,91220.0,0.02150397]
[1764934615294,0.22024776,91221.0,91220.0,0.02150397]
[1764934615664,0.21924776,91221.0,91220.0,0.02150397]
[1764934616095,0.21926218,91215.0,91214.0,0.01736]
[1764934616294,0.24118732,91215.0,91214.0,0.01736]
[1764934617443,0.24118732,91215.0,91210.0,0.00099999]
[1764934617444,0.21927179,91211.0,91210.0,0.00099999]
[1764934619064,0.01096455,91203.0,91198.0,0.01096515]
[1764934619267,0.23025558,91203.0,91202.0,0.02150397]
[1764934619672,0.21929584,91201.0,91200.0,0.01736]
[1764934620005,0.24122098,91201.0,91200.0,0.01736]
[1764934620823,0.24122098,91201.0,91200.0,0.02036]
[1764934621040,0.02192514,91201.0,91200.0,0.02036]
[1764934621303,0.02192514,91201.0,91200.0,0.23965824]
[1764934621500,0.02192514,91201.0,91200.0,0.02036]
[1764934621708,0.02192514,91201.0,91200.0,0.23965824]
[1764934621917,0.01096346,91212.0,91209.0,0.01096383]
[1764934622136,0.21926935,91213.0,91209.0,0.01096383]
[1764934622378,0.02192514,91214.0,91213.0,0.2517343]
[1764934622999,0.01096238,91221.0,91217.0,0.23021806]
[1764934623217,0.00011929,91221.0,91220.0,0.02150397]
[1764934623428,0.21936705,91221.0,91220.0,0.02150397]
[1764934623649,0.01096274,91218.0,91214.0,0.01096322]
[1764934623856,0.02192514,91215.0,91214.0,0.02832322]
[1764934624060,0.02192514,91215.0,91214.0,0.23022773]
[1764934625834,0.21927906,91208.0,91204.0,0.02150397]
[1764934626066,0.23023791,91210.0,91208.0,0.02150397]
[1764934626283,0.2192766,91209.0,91208.0,0.02150397]
[1764934627931,0.2192766,91209.0,91208.0,0.02250397]
[1764934629920,0.01096334,91213.0,91208.0,0.001]
[1764934630146,0.01096322,91214.0,91210.0,0.23023771]
[1764934630391,0.21926939,91212.0,91208.0,0.02250397]
[1764934630583,0.2192766,91209.0,91208.0,0.02250397]
[1764934631872,0.2192766,91209.0,91208.0,0.001]
[1764934632092,0.21928141,91207.0,91206.0,0.02150397]
[1764934632958,0.23024043,91209.0,91206.0,0.02150397]
[1764934633158,0.01108167,91221.0,91216.0,0.02150397]
[1764934633360,0.23021266,91220.0,91219.0,0.02150397]
[1764934633571,0.00011929,91221.0,91220.0,0.24075413]
[1764934633857,0.00011929,91221.0,91220.0,0.27465413]
[1764934635230,0.00011929,91221.0,91220.0,0.32481413]
[1764934635428,0.50011929,91221.0,91220.0,0.32481413]
[1764934637580,0.50011929,91221.0,91220.0,0.34217413]
[1764934639302,0.50011929,91221.0,91220.0,0.34417413]
[1764934642291,0.50011929,91221.0,91220.0,0.66717413]
[1764934643791,0.50011929,91221.0,91220.0,0.64981413]
[1764934644067,0.50011929,91221.0,91220.0,0.66717413]
[1764934644283,0.50011929,91221.0,91220.0,0.72969712]
[1764934644494,0.50011929,91221.0,91220.0,1.36193512]
[1764934644741,0.50011929,91221.0,91220.0,1.36293512]
[1764934645479,0.50011929,91221.0,91220.0,1.36093512]
[1764934645836,0.50011929,91221.0,91220.0,1.36593512]
[1764934646048,0.50011929,91221.0,91220.0,1.05805612]
[1764934646429,0.50011929,91221.0,91220.0,1.07541612]
[1764934647484,0.50011929,91221.0,91220.0,1.05391215]
[1764934647678,0.50011929,91221.0,91220.0,1.07541612]
[1764934648274,0.50011929,91221.0,91220.0,0.91638212]
[1764934649349,0.50011929,91221.0,91220.0,0.85279712]
[1764934649562,0.50011929,91221.0,91220.0,0.67117413]
[1764934650620,0.50011929,91221.0,91220.0,0.59951016]
[1764934650828,0.50011929,91221.0,91220.0,0.62101413]
[1764934651244,0.50011929,91221.0,91220.0,0.66919413]
[1764934651460,0.50011929,91221.0,91220.0,0.62101413]
[1764934651671,0.50011929,91221.0,91220.0,0.29301413]
[1764934652075,0.50011929,91221.0,91220.0,0.34119413]
[1764934652716,0.50011929,91221.0,91220.0,0.34019413]
[1764934653097,0.50011929,91221.0,91220.0,0.34119413]
[1764934653254,0.50011929,91221.0,91220.0,0.34319413]
[1764934654266,0.50011929,91221.0,91220.0,0.29501413]
[1764934655826,0.50011929,91221.0,91220.0,0.26111413]
[1764934656206,0.50011929,91221.0,91220.0,0.29282413]
[1764934656410,0.50011929,91221.0,91220.0,0.34100413]
[1764934658080,0.50011929,91221.0,91220.0,0.66400413]
[1764934659471,0.50011929,91221.0,91220.0,0.64664413]
[1764934659691,0.50011929,91221.0,91220.0,0.66400413]
[1764934660078,0.50011929,91221.0,91220.0,0.61582413]
[1764934660469,0.50011929,91221.0,91220.0,0.29282413]
[1764934660674,0.50011929,91221.0,91220.0,0.34100413]
[1764934664457,0.50011929,91221.0,91220.0,0.70916712]
[1764934664834,0.50011929,91221.0,91220.0,1.33013512]
[1764934667003,0.50011929,91221.0,91220.0,1.32813512]
[1764934667423,0.50011929,91221.0,91220.0,1.48173512]
[1764934667629,0.50011929,91221.0,91220.0,1.33413512]
[1764934667838,0.50011929,91221.0,91220.0,1.33613512]
[1764934669768,0.00508439,91221.0,91220.0,1.33613512]
[1764934670782,0.00508439,91221.0,91220.0,1.31877512]
[1764934670983,0.00508439,91221.0,91220.0,1.33609512]
[1764934671359,0.00508439,91221.0,91220.0,1.31877512]
[1764934671560,0.00508439,91221.0,91220.0,1.33609512]
[1764934673367,0.00508439,91221.0,91220.0,1.48269512]
[1764934675068,0.00508439,91221.0,91220.0,1.46537512]
[1764934675360,0.00508439,91221.0,91220.0,1.11354913]
[1764934675567,0.00508439,91221.0,91220.0,1.17607212]
[1764934677883,0.00508439,91221.0,91220.0,0.99219212]
[1764934678091,0.00508439,91221.0,91220.0,1.00951212]
[1764934678679,0.00508439,91221.0,91220.0,1.00251212]
[1764934679120,0.00508439,91221.0,91220.0,1.00670512]
[1764934679330,0.00508439,91221.0,91220.0,0.81823912]
[1764934679530,0.00508439,91221.0,91220.0,0.73048712]
[1764934679678,0.00508439,91221.0,91220.0,0.72548712]
[1764934679880,0.00508439,91221.0,91220.0,0.67530712]
[1764934680088,0.00508439,91221.0,91220.0,0.73048712]
[1764934680687,0.00508439,91221.0,91220.0,0.72948712]
[1764934680892,0.00508439,91221.0,91220.0,0.73048712]
[1764934682379,0.00508439,91221.0,91220.0,0.70898315]
[1764934682550,0.00508439,91221.0,91220.0,0.73048712]
[1764934682944,0.00508439,91221.0,91220.0,1.27840112]
[1764934683343,0.00508439,91221.0,91220.0,1.26761112]
[1764934684791,0.00508439,91221.0,91220.0,1.01739312]
[1764934685219,0.00508439,91221.0,91220.0,0.83166812]
[1764934690821,0.24648049,91265.0,91261.0,0.03246155]
[1764934691033,0.0109565,91270.0,91269.0,0.02150397]
[1764934691245,0.00039943,91270.0,91269.0,0.02150397]
[1764934692106,0.21952948,91270.0,91269.0,0.02150397]
[1764934692294,0.22152948,91270.0,91269.0,0.02150397]
[1764934692806,0.00239943,91270.0,91269.0,0.24063642]
[1764934694418,0.00239943,91270.0,91269.0,0.02150397]
[1764934694635,0.00239943,91270.0,91269.0,0.03882397]
[1764934695215,0.22152948,91270.0,91269.0,0.03882397]
[1764934696428,0.00239943,91270.0,91269.0,0.25795642]
[1764934698547,0.00239943,91270.0,91269.0,0.34519642]
[1764934698918,0.00239943,91270.0,91269.0,0.66819642]
[1764934699576,0.00039943,91270.0,91269.0,0.66819642]
[1764934699954,0.00139943,91270.0,91269.0,0.66819642]
[1764934702863,0.00139943,91270.0,91269.0,0.64669245]
[1764934703067,0.00139943,91270.0,91269.0,0.66819642]
[1764934704226,0.00139943,91270.0,91269.0,0.65087642]
[1764934704427,0.00139943,91270.0,91269.0,0.66819642]
[1764934707877,0.00139943,91270.0,91269.0,0.57719245]
[1764934708091,0.00139943,91270.0,91269.0,0.56363642]
[1764934708292,0.00139943,91270.0,91269.0,0.36182397]
[1764934708511,0.00139943,91270.0,91269.0,0.56363642]
[1764934708640,0.00139943,91270.0,91269.0,0.34450397]
[1764934708854,0.22052948,91270.0,91269.0,0.36182397]
[1764934709106,0.00139943,91270.0,91269.0,0.58095642]
[1764934709722,0.00139943,91270.0,91269.0,0.56363642]
[1764934709887,0.00139943,91270.0,91269.0,0.65772642]
[1764934710062,0.00139943,91270.0,91269.0,0.58095642]
[1764934710870,0.00139943,91270.0,91269.0,0.36182397]
[1764934711106,0.00139943,91270.0,91264.0,0.21914332]
[1764934711107,0.21913725,91267.0,91265.0,0.02150397]
[1764934711311,0.21913725,91267.0,91266.0,0.01732]
[1764934711826,0.21913725,91267.0,91266.0,0.02150397]
[1764934712032,0.23010924,91261.0,91260.0,0.02150397]
[1764934712265,0.23010924,91261.0,91260.0,0.03882397]
[1764934713111,0.01095854,91253.0,91245.0,0.0109595]
[1764934713294,0.21918528,91247.0,91246.0,0.01732]
[1764934713464,0.21918528,91247.0,91240.0,0.00099999]
[1764934713465,0.01095974,91243.0,91242.0,0.02150397]
[1764934713687,0.23016572,91239.0,91238.0,0.02150397]
[1764934713893,0.01095962,91244.0,91243.0,0.02150397]
[1764934714114,0.01095914,91248.0,91246.0,0.02150397]
[1764934714317,0.01095962,91244.0,91243.0,0.02150397]
[1764934716029,0.01195962,91244.0,91243.0,0.02150397]
[1764934716451,0.23115211,91244.0,91243.0,0.02150397]
[1764934717289,0.001,91244.0,91243.0,0.02150397]
[1764934717492,0.001,91244.0,91243.0,0.24069886]
[1764934717902,0.001,91244.0,91243.0,0.21919489]
[1764934718102,0.001,91244.0,91243.0,0.27183886]
[1764934719174,0.001,91244.0,91243.0,0.24069886]
[1764934721791,0.001,91244.0,91243.0,0.27183886]
[1764934722842,0.001,91244.0,91243.0,0.29596489]
[1764934723048,0.001,91244.0,91243.0,0.31746886]
[1764934724796,0.02192514,91257.0,91254.0,0.23012451]
[1764934724998,0.02232433,91257.0,91256.0,0.02150397]
[1764934725836,0.02232433,91257.0,91256.0,0.24066764]
[1764934726345,0.02432433,91257.0,91256.0,0.24066764]
[1764934726792,0.00239919,91257.0,91256.0,0.31828764]
[1764934728066,0.00039919,91257.0,91256.0,0.31828764]
[1764934728222,0.00039919,91257.0,91256.0,0.32128764]
[1764934728663,0.00039919,91257.0,91256.0,0.31828764]
[1764934728817,0.00039919,91257.0,91256.0,0.32028764]
[1764934729183,0.00039919,91257.0,91256.0,0.32128764]
[1764934729537,0.00039919,91257.0,91256.0,0.32028764]
[1764934729937,0.00039919,91257.0,91256.0,0.32128764]
[1764934730548,0.00039919,91257.0,91256.0,0.64428764]
[1764934734507,0.00039919,91257.0,91256.0,0.70681063]
[1764934734883,0.00039919,91257.0,91256.0,2.02920463]
[1764934735082,0.00039919,91257.0,91256.0,1.31978963]
[1764934735321,0.00039919,91257.0,91256.0,1.23264563]
[1764934735722,0.00039919,91257.0,91256.0,1.19240763]
[1764934736297,0.00039919,91257.0,91256.0,1.08898663]
[1764934741778,0.00039919,91257.0,91256.0,0.62278367]
[1764934741978,0.00039919,91257.0,91256.0,0.77967964]
[1764934742332,0.00039919,91257.0,91256.0,0.58398764]
[1764934742507,0.00039919,91257.0,91256.0,0.24366764]
[1764934742738,0.00039919,91257.0,91256.0,0.26098764]
[1764934743068,0.00039919,91257.0,91256.0,0.33398764]
[1764934743276,0.00039919,91257.0,91256.0,0.33098764]
[1764934743478,0.00039919,91257.0,91256.0,0.65598764]
[1764934743882,0.00039919,91257.0,91256.0,0.65398764]
[1764934744096,0.00039919,91257.0,91256.0,0.65498764]
[1764934744477,0.00039919,91257.0,91256.0,0.65598764]
[1764934744906,0.00039919,91257.0,91256.0,0.65498764]
[1764934745299,0.00039919,91257.0,91256.0,0.65598764]
[1764934745511,0.00039919,91257.0,91256.0,0.59597764]
[1764934745716,0.00039919,91257.0,91256.0,0.61329764]
[1764934746886,0.00039919,91257.0,91256.0,0.29029764]
[1764934747290,0.00039919,91257.0,91256.0,0.25998764]
[1764934749658,0.00039919,91257.0,91256.0,0.31148367]
[1764934749797,0.00039919,91257.0,91256.0,0.33298764]
[1764934752262,0.00039919,91257.0,91256.0,0.29029764]
[1764934753292,0.00039919,91257.0,91256.0,0.25998764]
[1764934755220,0.00039919,91257.0,91256.0,0.29029764]
[1764934755382,0.00039919,91257.0,91256.0,0.33298764]
[1764934756483,0.00039919,91257.0,91256.0,0.31566764]
[1764934756686,0.00039919,91257.0,91256.0,0.33298764]
[1764934758242,0.00039919,91257.0,91256.0,0.31566764]
[1764934758439,0.00039919,91257.0,91256.0,0.33298764]
[1764934759645,0.00039919,91257.0,91256.0,0.29029764]
[1764934760068,0.00039919,91257.0,91256.0,0.25998764]
[1764934760273,0.00039919,91257.0,91256.0,0.24266764]
[1764934760813,0.00039919,91257.0,91256.0,0.25998764]
[1764934761355,0.00039919,91257.0,91256.0,0.25147367]
[1764934761567,0.00039919,91257.0,91256.0,0.33298764]
[1764934761909,0.00039919,91257.0,91256.0,0.33198764]
[1764934762312,0.00039919,91257.0,91256.0,0.33098764]
[1764934763684,0.00039919,91257.0,91256.0,0.28829764]
[1764934763892,0.00039919,91257.0,91256.0,0.02250397]
[1764934764112,0.21956045,91257.0,91256.0,0.03982397]
[1764934764417,0.00039919,91257.0,91256.0,0.03982397]
[1764934765082,0.21956045,91257.0,91256.0,0.03982397]
[1764934765269,0.21956045,91257.0,91256.0,0.01732]
[1764934765496,0.00039919,91257.0,91256.0,0.03882397]
[1764934765726,0.21956045,91257.0,91256.0,0.04282397]
[1764934766107,0.21956045,91257.0,91256.0,0.01732]
[1764934774953,0.00039919,91257.0,91256.0,0.01732]
[1764934775392,0.00039919,91257.0,91256.0,0.23648367]
[1764934775633,0.00039919,91257.0,91256.0,0.25798764]
[1764934775805,0.00039919,91257.0,91256.0,0.23648367]
[1764934777789,0.00039919,91257.0,91256.0,0.25798764]
[1764934779039,0.00039919,91257.0,91256.0,0.03882397]
[1764934779657,0.00039919,91257.0,91256.0,0.25798764]
[1764934784879,0.00039919,91257.0,91256.0,0.28497764]
[1764934785780,0.22549763,91266.0,91265.0,0.02150397]
[1764934785941,0.22561734,91266.0,91265.0,0.02150397]
[1764934786504,0.00011971,91266.0,91265.0,0.02150397]
[1764934786706,0.00011971,91266.0,91265.0,0.24064602]
[1764934787345,0.00011971,91266.0,91265.0,0.26873602]
[1764934787577,0.00011971,91266.0,91265.0,0.31022602]
[1764934787774,0.00211971,91266.0,91265.0,0.31022602]
[1764934788239,0.00211971,91266.0,91265.0,0.26873602]
[1764934788993,0.00211971,91266.0,91265.0,0.24064602]
[1764934792344,0.00211971,91266.0,91265.0,0.31022602]
[1764934793471,0.00211971,91266.0,91265.0,0.26873602]
[1764934793941,0.00211971,91266.0,91265.0,0.24064602]
[1764934794149,0.01095722,91264.0,91263.0,0.02150397]
[1764934794355,0.2301038,91264.0,91260.0,0.22015349]
[1764934794597,0.2191528,91261.0,91260.0,0.02150397]
[1764934794801,0.01095782,91259.0,91257.0,0.02150397]
[1764934795007,0.23010672,91262.0,91261.0,0.02150397]
[1764934796028,0.01095746,91262.0,91261.0,0.02150397]
[1764934796266,0.23010672,91262.0,91261.0,0.02150397]
[1764934796700,0.23010426,91263.0,91262.0,0.02150397]
[1764934796879,0.00011971,91266.0,91265.0,0.24064602]
[1764934797096,0.00011971,91266.0,91265.0,0.26686602]
[1764934797295,0.00011971,91266.0,91265.0,0.30863602]
[1764934798146,0.00211971,91266.0,91265.0,0.30863602]
[1764934801072,0.00211971,91266.0,91265.0,0.26686602]
[1764934801282,0.00211971,91266.0,91265.0,0.24064602]
[1764934802187,0.00211971,91266.0,91265.0,0.30863602]
[1764934803314,0.00211971,91266.0,91265.0,0.63163602]
[1764934803959,0.00211971,91266.0,91265.0,0.69415901]
[1764934804372,0.00011971,91266.0,91265.0,0.69415901]
[1764934804794,0.00011971,91266.0,91265.0,0.69615901]
[1764934805606,0.00011971,91266.0,91265.0,0.69715901]
[1764934806050,0.00011971,91266.0,91265.0,0.71447901]
[1764934806466,0.00011971,91266.0,91265.0,0.65195602]
[1764934808591,0.00011971,91266.0,91265.0,0.61018602]
[1764934808794,0.00011971,91266.0,91265.0,0.26986602]
[1764934809000,0.00011971,91266.0,91265.0,0.28718602]
[1764934809206,0.00011971,91266.0,91265.0,0.65195602]
[1764934809850,0.00011971,91266.0,91265.0,0.61018602]
[1764934810055,0.00011971,91266.0,91265.0,0.65195602]
[1764934822101,0.00011971,91266.0,91265.0,0.63463602]
[1764934822306,0.00011971,91266.0,91265.0,0.65195602]
[1764934823208,0.00011971,91266.0,91265.0,0.63463602]
[1764934823412,0.00011971,91266.0,91265.0,0.65195602]
[1764934826730,0.00011971,91266.0,91265.0,1.30850801]
[1764934828267,0.00011971,91266.0,91265.0,1.07200401]
[1764934828471,0.00011971,91266.0,91265.0,0.99336902]
[1764934828677,0.00011971,91266.0,91265.0,0.59286602]
[1764934828881,0.00011971,91266.0,91265.0,0.56664602]
[1764934829087,0.00011971,91266.0,91265.0,0.58396602]
[1764934829458,0.00011971,91266.0,91265.0,0.04182397]
[1764934829656,0.00011971,91266.0,91265.0,0.03982397]
[1764934829858,0.00211971,91266.0,91265.0,0.03882397]
[1764934830060,0.21914205,91265.0,91260.0,0.01195769]
[1764934830266,0.21914205,91265.0,91264.0,0.02150397]
[1764934831733,0.21914205,91265.0,91259.0,0.21915524]
[1764934831734,0.23011265,91260.0,91259.0,0.02150397]
[1764934832066,0.0109577,91260.0,91259.0,0.03882397]
[1764934832611,0.21915152,91262.0,91261.0,0.02150397]
[1764934833831,0.23010898,91262.0,91261.0,0.02150397]
[1764934834035,0.23010431,91263.0,91259.0,0.24743342]
[1764934834177,0.21914978,91262.0,91261.0,0.02150397]
[1764934835104,0.22014978,91262.0,91261.0,0.02150397]
[1764934836993,0.01095854,91253.0,91250.0,0.00199998]
[1764934837164,0.01096154,91228.0,91225.0,0.02150397]
[1764934837403,0.0109613,91230.0,91225.0,0.02150397]
[1764934837607,0.01096094,91233.0,91232.0,0.02150397]
[1764934837608,0.23018211,91233.0,91232.0,0.02150397]
[1764934838417,0.23018211,91233.0,91232.0,0.02190316]
[1764934838981,0.23118211,91233.0,91232.0,0.02190316]
[1764934841277,0.23118211,91233.0,91232.0,0.00039919]
[1764934841478,0.23118211,91233.0,91232.0,0.02190316]
[1764934842768,0.23018211,91233.0,91232.0,0.02190316]
[1764934843158,0.23318211,91233.0,91232.0,0.02190316]
[1764934849906,0.003,91233.0,91232.0,0.08286316]
[1764934850113,0.003,91233.0,91232.0,0.04640316]
[1764934850922,0.003,91233.0,91232.0,0.08316316]
[1764934851125,0.003,91233.0,91232.0,0.06165919]
[1764934851266,0.003,91233.0,91232.0,0.08316316]
[1764934851886,0.2301372,91250.0,91249.0,0.02150397]
[1764934853133,0.2311372,91250.0,91249.0,0.02150397]
[1764934854156,0.2331372,91250.0,91249.0,0.02150397]
[1764934859751,0.0139589,91250.0,91249.0,0.02150397]
[1764934860156,0.003,91250.0,91249.0,0.02150397]
[1764934860373,0.003,91250.0,91249.0,0.25776445]
[1764934862540,0.003,91250.0,91249.0,0.24068445]
[1764934862743,0.003,91250.0,91249.0,0.01732]
[1764934862947,0.26053634,91250.0,91249.0,0.01732]
[1764934863148,0.23313698,91250.0,91249.0,0.01732]
[1764934863359,0.26053424,91250.0,91249.0,0.01732]
[1764934863584,0.21918288,91248.0,91247.0,0.02150397]
[1764934864558,0.01095998,91241.0,91239.0,0.02150397]
[1764934864787,0.24112959,91240.0,91239.0,0.02150397]
[1764934865003,0.24112959,91240.0,91239.0,0.03882397]
[1764934865215,0.24112959,91240.0,91239.0,0.01732]
[1764934865216,0.25208969,91240.0,91239.0,0.01732]
[1764934865414,0.25208969,91240.0,91239.0,0.03882397]
[1764934865788,0.25208969,91240.0,91239.0,0.02150397]
[1764934867663,0.25708969,91240.0,91239.0,0.02150397]
[1764934869308,0.02692514,91240.0,91239.0,0.24070847]
[1764934869520,0.005,91240.0,91239.0,0.26532847]
[1764934869859,0.001,91240.0,91239.0,0.30007847]
[1764934870065,0.01095926,91247.0,91246.0,0.02150397]
[1764934871397,0.01295926,91247.0,91246.0,0.02150397]
[1764934871638,0.002,91247.0,91246.0,0.02150397]
[1764934872535,0.22118528,91247.0,91246.0,0.02150397]
[1764934873856,0.002,91247.0,91246.0,0.24069166]
[1764934874090,0.002,91247.0,91246.0,0.21918769]
[1764934874270,0.002,91247.0,91246.0,0.26531166]
[1764934874472,0.002,91247.0,91246.0,0.30006166]
[1764934875076,0.002,91247.0,91246.0,0.26531166]
[1764934875690,0.002,91247.0,91246.0,0.30006166]
[1764934879663,0.002,91247.0,91246.0,0.26531166]
[1764934881088,0.002,91247.0,91246.0,0.30006166]
[1764934881660,0.002,91247.0,91246.0,0.31714166]
[1764934882233,0.002,91247.0,91246.0,0.64014166]
[1764934883049,0.002,91247.0,91246.0,0.64114166]
[1764934883252,0.230091,91269.0,91267.0,0.21913712]
[1764934883253,0.01095662,91269.0,91267.0,0.21913712]
[1764934883424,0.02192514,91268.0,91267.0,0.24064109]
[1764934883631,0.02192514,91268.0,91267.0,0.02150397]
[1764934884227,0.24105999,91268.0,91267.0,0.02150397]
[1764934884436,0.21913725,91267.0,91260.0,0.00099999]
[1764934884644,0.21915406,91260.0,91259.0,0.02150397]
[1764934887084,0.22115406,91260.0,91259.0,0.02150397]
[1764934889203,0.002,91260.0,91259.0,0.02150397]
[1764934889411,0.002,91260.0,91259.0,0.24066043]
[1764934891035,0.002,91260.0,91259.0,0.02150397]
[1764934891240,0.23011646,91259.0,91256.0,0.23011933]
[1764934891442,0.23011646,91259.0,91258.0,0.01732]